bitfinex/quotes_SOLUSD_20250313
["timestamp","ask_amount","ask_price","bid_price","bid_amount"]
[1741861626902,44.91405811,127.03,126.99,0.063]
[1741861627109,37.04195811,127.0,126.99,0.063]
[1741861627686,37.04195811,127.01,126.99,0.063]
[1741861627892,37.04195811,127.02,126.99,0.063]
[1741861628112,44.91405811,127.03,126.99,0.063]
[1741861628316,37.04195811,127.0,126.99,0.063]
[1741861629793,37.04195811,127.0,126.95,0.063]
[1741861629794,55.97593011,127.0,126.95,0.063]
[1741861629994,37.04195811,126.96,126.95,0.063]
[1741861630422,44.91835811,126.96,126.95,0.063]
[1741861630594,37.04195811,126.96,126.95,0.063]
[1741861630917,44.91835811,126.96,126.95,0.063]
[1741861632793,37.04195811,126.96,126.95,0.063]
[1741861633102,37.04195811,126.96,126.92,37.10495811]
[1741861633103,18.64964886,126.95,126.92,0.063]
[1741861633304,83.25920697,126.96,126.91,0.063]
[1741861633305,55.97593011,126.93,126.91,0.063]
[1741861633496,18.64964886,126.91,126.89,2.511736]
[1741861634720,27.8827,126.86,126.8,37.04195811]
[1741861634903,37.04195811,126.84,126.78,44.92955811]
[1741861635099,37.04195811,126.84,126.79,37.32628125]
[1741861635293,37.04195811,126.85,126.82,0.063]
[1741861635497,37.04195811,126.84,126.82,0.063]
[1741861635716,37.04195811,126.83,126.82,0.063]
[1741861636396,37.04195811,126.84,126.82,0.063]
[1741861637014,37.04195811,126.88,126.83,37.04195811]
[1741861637202,37.04195811,126.88,126.82,0.063]
[1741861637407,37.04195811,126.89,126.84,37.04195811]
[1741861637610,37.04195811,126.88,126.82,0.34732314]
[1741861637816,37.04195811,126.88,126.83,37.04195811]
[1741861637998,37.04195811,126.9,126.84,37.04195811]
[1741861638321,37.04195811,126.9,126.85,37.04195811]
[1741861638620,37.04195811,126.89,126.84,37.18411968]
[1741861638822,37.04195811,126.9,126.85,37.04195811]
[1741861639014,37.04195811,126.91,126.86,37.04195811]
[1741861639211,37.04195811,126.92,126.87,37.04195811]
[1741861639628,7.8778,126.94,126.85,6.62422314]
[1741861639629,37.04195811,126.9,126.85,43.66618125]
[1741861639998,37.04195811,126.89,126.84,20.26822314]
[1741861640198,37.04195811,126.89,126.84,186.94195811]
[1741861640434,37.04195811,126.88,126.83,37.04195811]
[1741861640615,37.04195811,126.87,126.82,37.10495811]
[1741861641012,37.04195811,126.86,126.82,0.063]
[1741861641527,37.04195811,126.85,126.82,0.063]
[1741861641900,37.04195811,126.84,126.82,0.063]
[1741861642103,37.04195811,126.85,126.82,0.063]
[1741861642603,37.04195811,126.83,126.82,0.063]
[1741861642929,37.04195811,126.84,126.82,0.063]
[1741861643122,44.92475811,126.86,126.82,0.063]
[1741861643327,26.25482314,126.9,126.82,0.063]
[1741861643328,37.04195811,126.87,126.82,37.10495811]
[1741861643834,37.04195811,126.87,126.82,0.063]
[1741861644147,7.8808,126.89,126.82,37.10495811]
[1741861644308,7.8808,126.89,126.84,37.04195811]
[1741861644630,44.92225811,126.9,126.85,37.04195811]
[1741861644807,37.04195811,126.89,126.84,37.04195811]
[1741861645219,37.04195811,126.87,126.82,43.59125811]
[1741861645443,37.04195811,126.85,126.82,0.063]
[1741861645810,37.04195811,126.86,126.82,0.063]
[1741861646232,37.04195811,126.85,126.82,0.063]
[1741861646440,37.04195811,126.83,126.82,0.063]
[1741861646620,44.92645811,126.83,126.82,0.063]
[1741861646938,63.86043011,126.83,126.82,0.063]
[1741861647520,8.16882314,126.83,126.82,0.063]
[1741861647835,44.92645811,126.83,126.82,0.063]
[1741861648434,37.04195811,126.84,126.82,0.063]
[1741861648946,37.04195811,126.83,126.82,0.063]
[1741861651132,37.04195811,126.84,126.82,0.063]
[1741861651335,7.882,126.87,126.82,0.063]
[1741861651530,20.0,126.85,126.82,0.063]
[1741861651727,37.04195811,126.86,126.82,0.063]
[1741861652123,57.04195811,126.85,126.82,0.063]
[1741861652328,37.04195811,126.84,126.82,0.063]
[1741861652530,37.04195811,126.86,126.82,0.063]
[1741861652726,37.04195811,126.87,126.82,45.13171968]
[1741861653044,37.04195811,126.88,126.83,37.04195811]
[1741861653245,37.04195811,126.87,126.82,44.98955811]
[1741861654251,37.04195811,126.87,126.82,7.9476]
[1741861654426,37.04195811,126.87,126.82,44.98955811]
[1741861655347,18.64964886,126.9,126.82,7.9476]
[1741861655348,37.04195811,126.86,126.82,7.9476]
[1741861655718,57.04195811,126.87,126.82,44.98955811]
[1741861655924,20.0,126.87,126.82,44.98955811]
[1741861656125,57.04195811,126.87,126.82,7.9476]
[1741861656643,64.92405811,126.87,126.82,7.9476]
[1741861656820,37.04195811,126.86,126.82,7.9476]
[1741861657134,37.04195811,126.86,126.82,0.063]
[1741861657340,64.92405811,126.87,126.82,0.063]
[1741861657541,64.92405811,126.87,126.78,50.48874886]
[1741861657542,20.0,126.8,126.71,6.361]
[1741861657749,37.04195811,126.77,126.71,125.67295811]
[1741861658417,30.62964886,126.81,126.73,37.04195811]
[1741861658418,20.0,126.78,126.73,37.04195811]
[1741861658613,7.8845,126.83,126.77,37.04195811]
[1741861658843,7.8845,126.83,126.74,50.0]
[1741861658844,7.8833,126.85,126.8,37.04195811]
[1741861659348,7.8829,126.86,126.81,37.04195811]
[1741861659540,7.8829,126.86,126.82,37.04195811]
[1741861659743,44.95325811,126.89,126.83,37.04195811]
[1741861659948,37.04195811,126.87,126.82,37.04195811]
[1741861660248,44.95325811,126.89,126.83,37.04195811]
[1741861660436,37.04195811,126.88,126.83,37.04195811]
[1741861660640,7.882,126.87,126.82,37.04195811]
[1741861660841,55.97593011,126.88,126.78,88.7514]
[1741861661047,7.911,126.89,126.81,37.04195811]
[1741861661048,37.04195811,126.87,126.81,37.04195811]
[1741861661233,37.04195811,126.85,126.8,37.04195811]
[1741861661436,37.04195811,126.84,126.79,119.31195811]
[1741861662439,37.04195811,126.83,126.79,82.27]
[1741861662638,20.0,126.84,126.79,119.31195811]
[1741861662834,7.882,126.87,126.83,37.04195811]
[1741861663148,37.04195811,126.86,126.81,37.04195811]
[1741861663351,37.04195811,126.85,126.8,174.84195811]
[1741861663536,37.04195811,126.86,126.8,119.31195811]
[1741861663738,37.04195811,126.86,126.81,37.04195811]
[1741861664048,44.92395811,126.87,126.81,37.04195811]
[1741861664246,37.04195811,126.87,126.81,37.04195811]
[1741861665362,44.92395811,126.87,126.81,37.04195811]
[1741861665652,37.04195811,126.87,126.81,44.92765811]
[1741861666152,37.04195811,126.86,126.81,37.04195811]
[1741861666357,0.03,126.89,126.85,37.04195811]
[1741861666538,0.03,126.89,126.84,37.04195811]
[1741861666743,37.07195811,126.89,126.84,37.04195811]
[1741861667131,0.03,126.89,126.84,119.31195811]
[1741861667336,0.03,126.89,126.85,37.04195811]
[1741861667559,0.03,126.89,126.84,82.27]
[1741861667744,0.03,126.89,126.84,127.19575811]
[1741861668141,0.03,126.89,126.84,119.31195811]
[1741861668634,0.03,126.89,126.85,37.32628125]
[1741861668858,0.03,126.89,126.86,44.92465811]
[1741861669263,0.03,126.89,126.87,37.04195811]
[1741861669865,0.03,126.89,126.88,37.32628125]
[1741861670158,0.03,126.89,126.88,276.04593011]
[1741861670360,0.03,126.89,126.88,257.39628125]
[1741861670941,0.03,126.89,126.88,265.27768125]
[1741861671458,0.03,126.89,126.88,283.92733011]
[1741861671753,0.03,126.89,126.88,265.27768125]
[1741861672158,0.03,126.89,126.88,283.92733011]
[1741861674246,37.04195811,126.97,126.88,283.92733011]
[1741861674453,37.04195811,126.97,126.92,37.04195811]
[1741861674761,44.91715811,126.98,126.93,37.04195811]
[1741861674975,7.8747,126.99,126.94,37.04195811]
[1741861675153,46.43515811,127.0,126.95,37.04195811]
[1741861675351,46.43515811,127.0,126.95,82.27]
[1741861675352,37.04195811,126.99,126.95,82.27]
[1741861675555,46.43515811,127.0,126.95,82.27]
[1741861675868,9.3932,127.0,126.95,119.31195811]
[1741861676047,7.8742,127.0,126.95,119.31195811]
[1741861676477,44.91615811,127.0,126.95,119.31195811]
[1741861676675,7.9033,127.02,126.97,37.04195811]
[1741861676885,0.03,127.02,126.98,37.04195811]
[1741861677084,0.03,127.02,126.97,37.04195811]
[1741861677771,37.04195811,127.01,126.96,119.31195811]
[1741861678170,0.03,127.02,126.96,119.31195811]
[1741861678384,37.07195811,127.02,126.96,119.31195811]
[1741861678993,7.8733,127.01,126.96,119.31195811]
[1741861679195,44.91525811,127.01,126.96,119.31195811]
[1741861679400,37.04195811,126.99,126.93,37.04195811]
[1741861679582,37.04195811,126.96,126.93,82.27]
[1741861679783,37.04195811,126.94,126.91,82.27]
[1741861680032,37.04195811,126.97,126.92,37.04195811]
[1741861680200,37.04195811,126.96,126.91,119.31195811]
[1741861680380,37.04195811,126.95,126.91,82.27]
[1741861680574,37.04195811,126.95,126.9,37.04195811]
[1741861681097,44.91825811,126.97,126.91,44.92145811]
[1741861681302,44.91825811,126.97,126.92,37.04195811]
[1741861681675,44.91825811,126.97,126.91,44.92145811]
[1741861681876,37.04195811,126.96,126.91,37.04195811]
[1741861682300,37.04195811,126.95,126.9,37.04195811]
[1741861682600,37.04195811,126.99,126.93,37.04195811]
[1741861682804,37.04195811,127.0,126.95,37.04195811]
[1741861682998,57.04195811,126.97,126.9,220.21216157]
[1741861683185,0.03,126.97,126.92,37.04195811]
[1741861683493,0.03,126.97,126.96,37.04195811]
[1741861684003,0.03,126.97,126.96,37.32628125]
[1741861685010,0.03,126.97,126.96,45.06051968]
[1741861685308,0.03,126.97,126.96,44.91835811]
[1741861685491,0.03,126.97,126.96,37.32628125]
[1741861685808,0.03,126.97,126.96,119.59628125]
[1741861686105,0.03,126.97,126.96,127.47268125]
[1741861687210,0.03,126.97,126.96,119.31195811]
[1741861687391,37.07195811,126.97,126.89,88.8694]
[1741861687710,37.07195811,126.97,126.92,37.04195811]
[1741861687884,0.03,126.97,126.92,37.04195811]
[1741861688615,0.03,126.97,126.95,37.04195811]
[1741861689581,37.07195811,126.97,126.91,7.8793]
[1741861689788,37.04195811,126.96,126.91,37.04195811]
[1741861690104,0.03,126.97,126.93,37.04195811]
[1741861690283,37.07195811,126.97,126.92,37.04195811]
[1741861690482,37.04195811,126.96,126.91,37.04195811]
[1741861691005,0.03,126.97,126.93,37.04195811]
[1741861691186,37.07195811,126.97,126.92,37.04195811]
[1741861691585,0.03,126.97,126.94,37.04195811]
[1741861691791,0.03,126.97,126.95,37.04195811]
[1741861692087,0.03,126.97,126.94,37.04195811]
[1741861692295,7.9059,126.97,126.94,37.04195811]
[1741861692680,7.9059,126.97,126.93,37.04195811]
[1741861693301,0.03,126.97,126.94,37.04195811]
[1741861693502,0.03,126.97,126.95,37.04195811]
[1741861693721,0.03,126.97,126.96,37.04195811]
[1741861693888,0.03,126.97,126.96,119.31195811]
[1741861694603,0.03,126.97,126.95,37.04195811]
[1741861695100,0.03,126.97,126.96,55.97593011]
[1741861695309,0.03,126.97,126.96,62.63413011]
[1741861695607,0.03,126.97,126.96,70.51053011]
[1741861696888,0.03,126.97,126.96,51.57655811]
[1741861697206,0.03,126.97,126.96,70.51053011]
[1741861698093,0.03,127.02,126.97,68.933972]
[1741861698298,0.03,127.02,127.01,37.04195811]
[1741861698506,0.03,127.02,127.0,37.04195811]
[1741861698902,0.03,127.02,127.01,37.04195811]
[1741861699206,0.03,127.02,126.97,239.003972]
[1741861699413,0.03,127.02,126.99,37.04195811]
[1741861699711,0.03,127.02,126.98,44.91705811]
[1741861699900,0.03,127.02,126.98,37.04195811]
[1741861700108,0.03,127.02,127.0,37.04195811]
[1741861700606,0.03,127.02,127.01,37.32628125]
[1741861700805,0.03,127.02,127.01,193.77593011]
[1741861701712,0.03,127.02,127.01,283.91923011]
[1741861702908,0.03,127.06,127.04,0.28432314]
[1741861703211,0.03,127.06,127.05,55.97593011]
[1741861703519,0.03,127.06,127.05,280.81788822]
[1741861703691,0.03,127.06,127.05,288.68878822]
[1741861704100,0.03,127.06,127.05,370.95878822]
[1741861704304,0.03,127.06,127.05,276.04593011]
[1741861704505,0.03,127.06,127.05,37.32628125]
[1741861705485,0.03,127.06,127.05,55.97593011]
[1741861705691,0.03,127.06,127.05,150.88878822]
[1741861705910,0.03,127.06,127.05,370.95878822]
[1741861706714,0.03,127.06,127.05,276.04593011]
[1741861706909,0.03,127.06,127.05,37.32628125]
[1741861707996,0.03,127.06,127.05,113.84683011]
[1741861708606,0.03,127.1,127.08,0.28432314]
[1741861708800,0.03,127.1,127.09,105.97593011]
[1741861709004,9.5348,127.18,127.09,105.97593011]
[1741861709005,0.03,127.18,127.1,0.28432314]
[1741861709321,0.03,127.18,127.14,37.32628125]
[1741861710295,0.03,127.18,127.14,43.08980375]
[1741861710691,0.03,127.18,127.14,5.7635225]
[1741861710912,0.03,127.18,127.14,42.80548061]
[1741861711119,37.07195811,127.18,127.14,5.7635225]
[1741861711495,0.03,127.18,127.14,61.73945261]
[1741861711699,0.03,127.18,127.14,213.16530776]
[1741861711900,0.03,127.18,127.14,207.40178526]
[1741861712435,0.03,127.18,127.14,257.40178526]
[1741861713102,0.03,127.18,127.14,339.67178526]
[1741861713307,0.03,127.18,127.16,50.0]
[1741861713512,0.03,127.18,127.17,55.69160697]
[1741861713704,0.03,127.18,127.17,55.97593011]
[1741861713906,0.03,127.18,127.17,201.63933011]
[1741861714114,0.03,127.18,127.17,138.08432314]
[1741861714300,0.03,127.18,127.17,206.22963104]
[1741861714505,0.03,127.19,127.17,10.35085608]
[1741861715108,0.03,127.19,127.17,5.76055515]
[1741861715306,0.03,127.19,127.18,42.77749103]
[1741861715507,0.03,127.19,127.18,43.06181417]
[1741861716323,0.03,127.19,127.18,5.73553292]
[1741861716817,0.03,127.19,127.18,20.69473605]
[1741861717822,0.03,127.19,127.18,5.76055515]
[1741861718319,37.07195811,127.19,127.18,5.76055515]
[1741861718615,37.07195811,127.19,127.13,37.32628125]
[1741861718819,37.04195811,127.18,127.13,37.32628125]
[1741861719031,37.04195811,127.18,127.15,9.16416071]
[1741861719900,0.03,127.19,127.15,46.20611882]
[1741861720119,0.03,127.19,127.16,37.04195811]
[1741861720323,0.03,127.19,127.17,37.04195811]
[1741861720617,0.03,127.19,127.18,37.04195811]
[1741861721005,0.03,127.19,127.18,37.32628125]
[1741861721615,0.03,127.19,127.17,37.04195811]
[1741861722411,0.03,127.19,127.16,174.98411968]
[1741861722920,0.03,127.19,127.18,5.71967161]
[1741861723331,0.03,127.19,127.18,43.04595286]
[1741861723713,0.03,127.19,127.18,199.49560172]
[1741861724010,0.03,127.19,127.18,249.49560172]
[1741861724410,0.03,127.19,127.18,257.35840172]
[1741861724615,0.03,127.19,127.18,249.49560172]
[1741861724819,0.03,127.19,127.18,199.49560172]
[1741861725211,0.03,127.19,127.18,148.37411421]
[1741861725414,0.03,127.19,127.18,148.08979107]
[1741861725619,37.07195811,127.19,127.18,10.28979107]
[1741861726027,37.07195811,127.19,127.18,4.57011946]
[1741861726331,0.03,127.19,127.15,174.84195811]
[1741861726518,7.8922,127.19,127.15,174.84195811]
[1741861726905,7.8922,127.19,127.16,5.71579303]
[1741861727808,44.93415811,127.19,127.16,5.71579303]
[1741861728210,37.04195811,127.18,127.16,5.71579303]
[1741861728415,7.8631,127.18,127.13,44.90775811]
[1741861728815,1.5708,127.19,127.15,37.04195811]
[1741861729128,0.03,127.19,127.15,37.04195811]
[1741861729513,7.8924,127.19,127.15,37.04195811]
[1741861729712,0.03,127.19,127.15,37.04195811]
[1741861730628,0.03,127.19,127.15,44.90655811]
[1741861730834,0.03,127.19,127.16,37.04195811]
[1741861731031,0.03,127.19,127.16,42.76353987]
[1741861731213,0.03,127.19,127.16,5.72158176]
[1741861732634,0.03,127.19,127.15,44.90645811]
[1741861732934,0.03,127.19,127.15,37.04195811]
[1741861733637,37.07195811,127.19,127.14,175.04711968]
[1741861733827,0.03,127.19,127.14,0.063]
[1741861734019,37.07195811,127.19,127.15,5.72432196]
[1741861735239,0.03,127.19,127.17,37.04195811]
[1741861735534,0.03,127.19,127.18,37.32628125]
[1741861736223,0.03,127.19,127.18,193.77593011]
[1741861736816,0.03,127.19,127.18,199.50856008]
[1741861737229,0.03,127.19,127.18,209.82699011]
[1741861737432,0.03,127.19,127.18,217.68979011]
[1741861737842,0.03,127.25,127.21,0.28432314]
[1741861738035,0.03,127.25,127.21,37.32628125]
[1741861738939,0.03,127.25,127.22,37.04195811]
[1741861739844,0.03,127.25,127.23,5.73262997]
[1741861740521,0.03,127.25,127.24,37.04195811]
[1741861740720,0.03,127.25,127.23,42.77458808]
[1741861740933,0.03,127.25,127.24,61.70856008]
[1741861741824,0.03,127.25,127.24,83.35390833]
[1741861742726,37.07195811,127.31,127.26,0.28432314]
[1741861742924,7.8554,127.3,127.26,37.32628125]
[1741861743719,7.8554,127.3,127.27,4.59541608]
[1741861743922,44.89735811,127.3,127.27,4.59541608]
[1741861744339,37.04195811,127.29,127.27,10.32804605]
[1741861744646,37.04195811,127.29,127.27,5.73262997]
[1741861745018,44.89855811,127.28,127.27,5.73262997]
[1741861745837,44.89855811,127.28,127.27,2.997e-05]
[1741861746233,44.89815811,127.29,127.27,2.997e-05]
[1741861746436,37.04195811,127.28,127.23,37.04195811]
[1741861746646,44.89815811,127.29,127.24,37.04195811]
[1741861746824,37.04195811,127.28,127.23,37.04195811]
[1741861747020,37.04195811,127.26,127.22,0.28432314]
[1741861748029,37.04195811,127.26,127.21,257.25411968]
[1741861748342,37.04195811,127.28,127.23,37.04195811]
[1741861748549,20.0,127.27,127.22,37.32628125]
[1741861748758,20.0,127.27,127.23,37.04195811]
[1741861748926,57.04195811,127.27,127.22,37.32628125]
[1741861749127,20.0,127.27,127.23,37.04195811]
[1741861749350,27.8573,127.27,127.23,37.04195811]
[1741861749858,44.89885811,127.28,127.23,37.04195811]
[1741861750228,7.8569,127.28,127.23,37.04195811]
[1741861750428,37.04195811,127.27,127.22,37.18411968]
[1741861750953,44.89885811,127.28,127.23,37.04195811]
[1741861751343,7.8569,127.28,127.23,37.04195811]
[1741861751543,37.04195811,127.27,127.22,37.32628125]
[1741861751744,37.04195811,127.27,127.22,0.28432314]
[1741861752068,37.04195811,127.27,127.22,37.32628125]
[1741861753278,7.8579,127.26,127.22,45.18658125]
[1741861753566,7.8575,127.27,127.23,37.04195811]
[1741861753944,20.0,127.29,127.24,37.04195811]
[1741861754139,37.04195811,127.29,127.24,119.31195811]
[1741861754350,7.8554,127.3,127.24,82.27]
[1741861754351,37.04195811,127.28,127.24,82.27]
[1741861755462,44.89795811,127.29,127.24,127.17095811]
[1741861757067,44.89795811,127.29,127.24,119.31195811]
[1741861757560,37.07195811,127.31,127.26,37.32628125]
[1741861757868,0.03,127.31,127.27,37.04195811]
[1741861758255,0.03,127.31,127.27,23.02558721]
[1741861758567,0.03,127.31,127.28,23.02558721]
[1741861758970,0.03,127.31,127.29,23.30991035]
[1741861759175,0.03,127.31,127.3,23.02558721]
[1741861759761,0.03,127.31,127.29,23.30991035]
[1741861760160,0.03,127.31,127.29,31.16581035]
[1741861760359,0.03,127.31,127.29,44.96885633]
[1741861760561,0.03,127.31,127.29,37.11295633]
[1741861760978,0.03,127.31,127.29,44.96885633]
[1741861761270,0.03,127.31,127.3,36.82863319]
[1741861761476,0.03,127.31,127.28,36.82863319]
[1741861762858,0.03,127.31,127.29,0.28432314]
[1741861763175,0.03,127.31,127.3,36.82863319]
[1741861766449,0.03,127.31,127.29,44.96865633]
[1741861766669,0.03,127.31,127.29,37.11295633]
[1741861766862,0.03,127.31,127.29,44.96885633]
[1741861768363,36.85863319,127.31,127.28,137.8]
[1741861768568,36.82863319,127.29,127.28,137.8]
[1741861768886,36.82863319,127.29,127.24,256.89863319]
[1741861769082,36.82863319,127.27,127.24,82.27]
[1741861769382,36.82863319,127.26,127.24,82.27]
[1741861769567,36.82863319,127.25,127.23,0.063]
[1741861769758,36.82863319,127.24,127.23,0.063]
[1741861770879,44.68773319,127.24,127.23,0.063]
[1741861771458,63.33738205,127.24,127.23,0.0001]
[1741861771689,63.33738205,127.24,127.15,82.27]
[1741861771690,20.0,127.21,127.15,82.27]
[1741861771855,36.82863319,127.19,127.15,82.27]
[1741861772187,36.82863319,127.2,127.15,82.27]
[1741861772555,1.6392,127.23,127.16,18.933972]
[1741861772761,36.82863319,127.23,127.18,36.97079476]
[1741861773487,36.82863319,127.21,127.16,119.24079476]
[1741861773698,36.82863319,127.21,127.16,82.41216157]
[1741861774398,43.33693319,127.24,127.18,36.97079476]
[1741861774877,51.19613319,127.24,127.18,36.97079476]
[1741861775058,36.82863319,127.23,127.18,36.97079476]
[1741861775258,36.82863319,127.23,127.18,44.83359476]
[1741861777284,36.82863319,127.22,127.17,44.83399476]
[1741861777600,36.82863319,127.21,127.17,82.27]
[1741861777786,36.82863319,127.2,127.16,0.063]
[1741861778077,36.82863319,127.17,127.16,0.063]
[1741861778483,36.82863319,127.19,127.16,0.063]
[1741861778681,36.82863319,127.2,127.16,0.063]
[1741861779086,36.82863319,127.21,127.16,44.75563319]
[1741861779386,36.82863319,127.2,127.16,0.063]
[1741861779977,36.82863319,127.21,127.16,44.75543319]
[1741861780166,36.82863319,127.2,127.16,7.9268]
[1741861780581,36.82863319,127.21,127.16,44.75543319]
[1741861781076,36.82863319,127.23,127.17,36.82863319]
[1741861781895,36.82863319,127.23,127.18,7.8628]
[1741861782101,36.82863319,127.22,127.18,7.8628]
[1741861782401,23.06387802,127.22,127.17,30.92707802]
[1741861784088,30.92437802,127.22,127.17,30.92707802]
[1741861785178,23.06387802,127.21,127.16,105.39687802]
[1741861785375,23.06387802,127.2,127.16,82.333]
[1741861785572,23.06387802,127.19,127.16,82.333]
[1741861785768,23.06387802,127.18,127.16,0.063]
[1741861786487,27.5114,127.22,127.16,0.063]
[1741861786792,23.06387802,127.2,127.16,0.063]
[1741861787185,30.92597802,127.2,127.16,0.063]
[1741861788688,25.472272,127.24,127.18,23.06387802]
[1741861788689,7.8597,127.23,127.18,23.06387802]
[1741861788869,30.92357802,127.23,127.18,23.06387802]
[1741861789073,7.8894,127.24,127.19,23.06387802]
[1741861789676,30.95327802,127.24,127.19,23.06387802]
[1741861790281,30.95327802,127.24,127.18,0.28432314]
[1741861790487,30.92437802,127.22,127.17,30.92707802]
[1741861790780,7.8605,127.22,127.18,23.06387802]
[1741861791000,30.92437802,127.22,127.17,23.06387802]
[1741861791303,30.92437802,127.22,127.16,117.86120116]
[1741861791671,30.92437802,127.22,127.17,23.06387802]
[1741861792294,30.92437802,127.22,127.17,105.33387802]
[1741861792493,0.03,127.24,127.19,23.06387802]
[1741861792705,0.03,127.24,127.21,23.06387802]
[1741861792872,0.03,127.24,127.2,23.06387802]
[1741861793077,7.8891,127.24,127.2,23.06387802]
[1741861793277,23.06387802,127.23,127.19,220.07]
[1741861793495,30.95297802,127.24,127.19,243.13387802]
[1741861793699,7.8892,127.24,127.19,243.13387802]
[1741861793993,30.95307802,127.24,127.19,243.13387802]
[1741861794668,23.06387802,127.23,127.19,220.07]
[1741861794868,23.06387802,127.22,127.19,220.07]
[1741861795082,23.06387802,127.23,127.19,220.07]
[1741861796371,7.8603,127.22,127.19,220.07]
[1741861797194,30.92417802,127.22,127.19,220.07]
[1741861797396,23.06387802,127.21,127.16,117.57687802]
[1741861797694,7.8603,127.22,127.17,23.34820116]
[1741861797898,7.8603,127.22,127.18,23.06387802]
[1741861798697,30.92417802,127.22,127.17,23.34820116]
[1741861798896,30.92417802,127.22,127.17,31.21160116]
[1741861799093,30.92387802,127.23,127.18,23.06387802]
[1741861800093,23.06387802,127.22,127.17,31.21160116]
[1741861800398,23.09387802,127.23,127.17,31.21160116]
[1741861800590,23.09387802,127.23,127.18,23.06387802]
[1741861800987,23.09387802,127.23,127.18,105.33387802]
[1741861801892,0.03,127.23,127.19,23.06387802]
[1741861802096,0.03,127.23,127.21,23.06387802]
[1741861802310,0.03,127.23,127.22,23.34820116]
[1741861802493,0.03,127.23,127.22,105.61820116]
[1741861803196,0.03,127.23,127.22,323.88785002]
[1741861803783,0.03,127.23,127.22,331.74815002]
[1741861804090,0.03,127.24,127.23,18.933972]
[1741861804287,0.03,127.24,127.23,41.99785002]
[1741861804999,0.03,127.24,127.23,23.34820116]
[1741861805300,0.03,127.24,127.22,243.13387802]
[1741861805475,0.03,127.24,127.22,82.27]
[1741861805680,23.09387802,127.24,127.22,82.27]
[1741861805881,0.03,127.24,127.22,82.27]
[1741861807689,7.8892,127.24,127.22,82.27]
[1741861807889,30.95307802,127.24,127.22,82.27]
[1741861808097,23.06387802,127.23,127.19,82.27]
[1741861808306,7.8892,127.24,127.19,82.27]
[1741861808307,23.06387802,127.21,127.19,82.27]
[1741861808607,23.06387802,127.22,127.19,82.27]
[1741861808980,23.06387802,127.23,127.19,82.27]
[1741861809186,23.06387802,127.22,127.19,82.27]
[1741861810194,30.92477802,127.22,127.19,82.27]
[1741861810504,23.06387802,127.21,127.19,82.27]
[1741861810806,30.92477802,127.22,127.19,82.27]
[1741861811786,23.06387802,127.2,127.16,0.063]
[1741861811986,23.06387802,127.17,127.16,0.063]
[1741861812187,30.92727802,127.17,127.16,0.063]
[1741861813405,1.6614,127.21,127.16,0.063]
[1741861813606,0.03,127.23,127.2,23.06387802]
[1741861814107,0.03,127.23,127.2,105.33387802]
[1741861814288,0.03,127.23,127.22,23.34820116]
[1741861814488,0.03,127.23,127.22,35.12820116]
[1741861814805,0.03,127.23,127.22,323.84785002]
[1741861815015,0.03,127.23,127.22,273.84785002]
[1741861815387,0.03,127.23,127.22,323.84785002]
[1741861815799,0.03,127.23,127.22,328.49019026]
[1741861816408,0.03,127.24,127.23,24.978372]
[1741861816618,0.03,127.24,127.23,281.90187109]
[1741861817111,0.03,127.31,127.25,68.933972]
[1741861817305,0.03,127.31,127.3,37.13782223]
[1741861817989,0.03,127.31,127.3,275.85737109]
[1741861818188,0.03,127.32,127.31,75.131072]
[1741861818394,0.03,127.32,127.31,121.01681906]
[1741861818592,0.03,127.36,127.31,121.01681906]
[1741861818799,0.03,127.36,127.35,37.13782223]
[1741861819214,0.03,127.36,127.34,48.87349909]
[1741861819419,0.03,127.36,127.35,37.13782223]
[1741861819724,0.03,127.36,127.35,275.85737109]
[1741861820296,0.03,127.36,127.35,283.70967109]
[1741861820609,7.8468,127.44,127.38,0.28432314]
[1741861820799,36.85349909,127.43,127.38,37.13782223]
[1741861821502,36.85349909,127.4,127.37,137.8]
[1741861821705,36.85349909,127.42,127.37,36.85349909]